[Event "8th Amsterdam Summer Open-A 2018"]
[Site "Amsterdam"]
[Date "2018.07.11"]
[Round "5"]
[White "Grooten, Herman"]
[Black "Kohler, Aran"]
[Result "1-0"]
[ECO "E07"]
[WhiteElo "2384"]
[BlackElo "2175"]
[Annotator "NA"]
[PlyCount "89"]
[EventDate "2018.07.07"]
[EventType "swiss"]
[EventCountry "NED"]
[SourceTitle "playchess.com"]
[Source "ChessBase"]
[SourceQuality "1"]
[TimeControl "40/5400+30:1800+30"]

1. d4 {[%emt 0:00:00]} Nf6 {[%emt 0:00:00]} 2. Nf3 {[%emt 0:00:00]} d5 {[%emt 0:00:27]} 3. c4 {[%emt 0:00:00]} e6 {[%emt 0:00:22]} 4. Nc3 {[%emt 0:00:17]} c6 {[%emt 0:00:09]} 5. g3 {[%emt 0:00:49]} Nbd7 {[%emt 0:00:20]} 6. Bg2 {[%emt 0:00:25]} Be7 {[%emt 0:11:13]} 7. O-O {[%emt 0:03:47]} O-O {[%emt 0:00:36]} 8. Nd2 {[%emt 0:04:09]} c5 {[%emt 0:08:22] LiveBook: 4 Partien E07: Closed Catalan: Main Line (5 Nf3 0-0 6 0-0 Nbd7)} (8... b5 $5) 9. dxc5 {[%emt 0:19:12]} (9. cxd5 cxd4 10. dxe6 dxc3 11. exd7 cxb2 12. Bxb2 Bxd7 13. Nb3 a5 14. Rc1 Ra7 15. Nc5 Bxc5 16. Rxc5 {1-0 (65) Melkumyan,H (2633)-Nihal,S (2507) London 2017}) 9... d4 {[%emt 0:12:37]} 10. Nb5 $146 {[%emt 0:06:02]} ({Predecessor:} 10. Na4 Nxc5 11. Nf3 d3 12. exd3 Nxd3 13. Be3 e5 14. Qb3 Bg4 15. Ne1 Be2 16. Nxd3 Qxd3 {½-½ (60) Henriksson,J (2292)-Kucuksari,K (2315) Sweden 2017}) 10... Nxc5 {[%emt 0:00:32]} 11. Nf3 {[%emt 0:01:34]} d3 {[%emt 0:00:49]} 12. Ne5 {[%emt 0:07:07]} a6 {[%emt 0:04:50]} 13. Nc3 {[%emt 0:04:17]} dxe2 {[%emt 0:00:08]} 14. Qxe2 {[%emt 0:00:14]} Nfd7 {[%emt 0:05:57]} 15. Rd1 {[%emt 0:01:14]} Qa5 {[%emt 0:04:09]} 16. Bf4 {[%emt 0:07:05]} Nxe5 {[%emt 0:01:50]} 17. Bxe5 {[%emt 0:00:50]} Na4 $18 {[%emt 0:01:50]} 18. Nxa4 {[%emt 0:04:31]} Qxa4 {[%emt 0:00:03]} 19. b3 {[%emt 0:07:11]} Qe8 {[%emt 0:10:09]} 20. Rac1 {[%emt 0:04:12]} f6 {[%emt 0:00:52]} 21. Bc7 {[%emt 0:03:17]} Ba3 {[%emt 0:03:24]} 22. Rc2 {[%emt 0:01:51]} Qe7 {[%emt 0:00:14]} 23. Bb6 {[%emt 0:02:02]} Bc5 {[%emt 0:04:16]} 24. Bxc5 {[%emt 0:00:08]} Qxc5 {[%emt 0:00:02]} 25. Qe3 {[%emt 0:03:27]} Qxe3 {[%emt 0:03:30]} 26. fxe3 {[%emt 0:00:02]} Kf7 {[%emt 0:00:16]} 27. Rd6 {[%emt 0:00:59]} Ke7 {[%emt 0:00:27]} 28. c5 {[%emt 0:00:31]} Rd8 {[%emt 0:02:54]} 29. Rcd2 {[%emt 0:00:48]} Rxd6 {[%emt 0:00:54]} 30. Rxd6 {[%emt 0:00:09]} Rb8 {[%emt 0:00:52]} 31. b4 {[%emt 0:05:22]} e5 {[%emt 0:00:27]} 32. a3 {[%emt 0:03:30]} a5 {[%emt 0:02:37]} 33. b5 {[%emt 0:01:46]} a4 {[%emt 0:01:44]} 34. b6 {[%emt 0:02:01]} Bd7 {[%emt 0:02:09]} 35. Rd2 {[%emt 0:00:34]} Rc8 {[%emt 0:00:47]} 36. Bxb7 {[%emt 0:00:57]} Rxc5 {[%emt 0:00:05]} 37. Rb2 {[%emt 0:01:11]} Rb5 {[%emt 0:08:15]} 38. Rxb5 {[%emt 0:00:10]} Bxb5 {[%emt 0:00:06]} 39. Be4 {[%emt 0:00:05]} Kd6 {[%emt 0:00:10]} 40. Kf2 {[%emt 0:01:31]} g6 {[%emt 0:01:36]} 41. h4 {[%emt 0:33:01]} f5 {[%emt 0:31:42]} 42. Bd5 {[%emt 0:02:47]} h6 {[%emt 0:06:20]} 43. e4 {[%emt 0:01:53]} Ba6 {[%emt 0:00:00]} 44. b7 {[%emt 0:00:00]} Kc7 {[%emt 0:00:00]} 45. h5 {[%emt 0:00:00]} 1-0

[Event "8th Amsterdam Summer Open-A 2018"]
[Site "Amsterdam"]
[Date "2018.07.11"]
[Round "5"]
[White "Brink, Barry"]
[Black "Bogaard, Milo"]
[Result "1-0"]
[ECO "A80"]
[WhiteElo "2342"]
[BlackElo "2073"]
[Annotator "NA"]
[PlyCount "55"]
[EventDate "2018.07.07"]
[EventType "swiss"]
[EventCountry "NED"]
[SourceTitle "playchess.com"]
[Source "ChessBase"]
[SourceQuality "1"]
[TimeControl "40/5400+30:1800+30"]

1. d4 {[%emt 21:00:13]} f5 2. Nc3 Nf6 3. Bg5 d5 4. e3 e6 5. Nf3 Be7 6. Bd3 O-O 7. O-O Ne4 {[%emt 0:00:08]} 8. Bxe7 {[%emt 0:00:13]} Qxe7 {[%emt 0:00:08]} 9. Ne2 {[%emt 0:00:07]} c5 {[%emt 0:01:08]} 10. c4 {[%emt 0:00:07]} dxc4 {[%emt 0:00:39]} 11. Bxc4 {[%emt 0:00:04]} Nd6 {[%emt 0:00:09]} 12. b3 {[%emt 0:00:04]} b6 {[%emt 0:07:55]} 13. Nf4 {[%emt 0:16:19]} Rd8 {[%emt 0:14:45]} 14. h4 {[%emt 0:27:01]} Nxc4 {[%emt 0:29:08]} 15. bxc4 {[%emt 0:00:14]} Bb7 {[%emt 0:02:27]} 16. d5 {[%emt 0:04:11]} exd5 $11 {[%emt 0:04:45]} 17. cxd5 {[%emt 0:00:49]} Na6 {[%emt 0:02:18]} 18. Qb3 {[%emt 0:16:56]} Kh8 {[%emt 0:09:41]} 19. Ng5 {[%emt 0:08:08]} Rd6 {[%emt 0:01:10]} 20. e4 {[%emt 0:00:14]} fxe4 {[%emt 0:02:56]} 21. Rfe1 {[%emt 0:00:56]} Nc7 {[%emt 0:01:34]} 22. Nxe4 {[%emt 0:06:06]} Rxd5 {[%emt 0:00:55]} 23. Ng5 {[%emt 0:01:56]} Qd7 {[%emt 0:01:48]} 24. Nxd5 {[%emt 0:01:49]} Bxd5 {[%emt 0:00:13]} 25. Qd3 {[%emt 0:00:46]} g6 {[%emt 0:00:46]} 26. Qc3+ {[%emt 0:07:07]} Kg8 {[%emt 0:00:20]} 27. Rad1 {[%emt 0:00:19]} Re8 {[%emt 0:01:54]} 28. Ne4 {[%emt 0:02:36]} 1-0

[Event "8th Amsterdam Summer Open-A 2018"]
[Site "Amsterdam"]
[Date "2018.07.11"]
[Round "5"]
[White "De Boer, Eelke"]
[Black "Pham, Khoi"]
[Result "0-1"]
[ECO "B96"]
[WhiteElo "2317"]
[BlackElo "2037"]
[Annotator "NA"]
[PlyCount "56"]
[EventDate "2018.07.07"]
[EventType "swiss"]
[EventCountry "NED"]
[SourceTitle "playchess.com"]
[Source "ChessBase"]
[SourceQuality "1"]
[TimeControl "40/5400+30:1800+30"]

1. e4 {[%emt 0:00:00]} c5 {[%emt 0:00:00]} 2. Nf3 {[%emt 0:00:00]} d6 {[%emt 0:00:00]} 3. d4 {[%emt 0:00:00]} cxd4 {[%emt 0:00:00]} 4. Nxd4 {[%emt 0:00:00]} Nf6 {[%emt 0:00:00]} 5. Nc3 {[%emt 0:00:00]} a6 {[%emt 0:00:00]} 6. Bg5 {[%emt 0:00:02]} e6 {[%emt 0:00:00]} 7. f4 {[%emt 0:00:07]} Nbd7 {[%emt 0:00:07]} 8. Qe2 {[%emt 0:00:12]} Qc7 {[%emt 0:00:55]} 9. O-O-O {[%emt 0:00:45]} Be7 {[%emt 0:01:03] B96: Sicilian Najdorf: 6 Bg5 e6 7 f4, lines other than 7...Qb6 and 7...Be7} 10. g4 {[%emt 0:00:53]} b5 {[%emt 0:00:30]} 11. a3 {[%emt 0:00:08]} Bb7 {[%emt 0:01:14]} 12. Bg2 {[%emt 0:10:59] LiveBook: 51 Games} (12. Bh4 b4 13. axb4 a5 14. Bxf6 Nxf6 15. b5 a4 16. g5 Nxe4 17. Nxe4 d5 {½-½ (40) Adhiban,B (2677)-Nepomniachtchi,I (2751) Tbilisi 2017}) 12... Rc8 {[%emt 0:03:32]} 13. Rhe1 {[%emt 0:10:49]} O-O {[%emt 0:03:28]} 14. Bxf6 {[%emt 0:03:06]} (14. e5 $14 dxe5 15. fxe5 Bxa3 16. bxa3 Bxg2 17. Nb1) 14... Bxf6 {[%emt 0:01:11]} 15. g5 $146 {[%emt 0:00:07]} Be7 {[%emt 0:00:56]} ({Black should try} 15... Bxd4 $15 16. Rxd4 e5 17. fxe5 Nxe5) 16. Qh5 {[%emt 0:03:00]} g6 {[%emt 0:07:09]} 17. Qh4 {[%emt 0:12:05]} e5 {[%emt 0:10:19]} (17... Qb6 $11) 18. Nb3 {[%emt 0:04:23]} exf4 {[%emt 0:07:12]} 19. Qxf4 {[%emt 0:00:08]} Ne5 {[%emt 0:01:47]} 20. h4 {[%emt 0:03:15]} f6 {[%emt 0:00:57]} 21. Qg3 {[%emt 0:05:15]} fxg5 {[%emt 0:03:03]} 22. hxg5 {[%emt 0:00:41]} Qd8 {[%emt 0:00:10]} 23. Nd4 $2 {[%emt 0:03:02]} (23. Kb1 $15) 23... Bxg5+ {[%emt 0:01:03]} 24. Kb1 {[%emt 0:00:36]} Bh4 {[%emt 0:01:06]} 25. Qe3 {[%emt 0:04:28]} Bxe1 {[%emt 0:01:00]} 26. Rxe1 {[%emt 0:00:29]} Qe7 {[%emt 0:03:35]} 27. Bh3 {[%emt 0:02:36]} Rce8 $19 {[%emt 0:00:31]} 28. Ne6 {[%emt 0:03:03]} Rf3 {[%emt 0:00:13]} 0-1

[Event "8th Amsterdam Summer Open-A 2018"]
[Site "Amsterdam"]
[Date "2018.07.11"]
[Round "5"]
[White "Elgersma, Simon"]
[Black "Cornelisse, Ticho"]
[Result "0-1"]
[ECO "B07"]
[WhiteElo "2263"]
[BlackElo "2074"]
[Annotator "NA"]
[PlyCount "93"]
[EventDate "2018.07.07"]
[EventType "swiss"]
[EventCountry "NED"]
[SourceTitle "playchess.com"]
[Source "ChessBase"]
[SourceQuality "1"]
[TimeControl "40/5400+30:1800+30"]

1. e4 {[%emt 0:00:00]} d6 {[%emt 0:00:45]} 2. d4 {[%emt 0:00:00]} Nf6 {[%emt 0:00:04]} 3. Nc3 {[%emt 0:00:00]} c6 {[%emt 0:00:38]} 4. h3 {[%emt 0:02:22]} b5 {[%emt 0:01:45]} 5. a3 {[%emt 0:02:12] LiveBook: 6 Games} Nbd7 {[%emt 0:02:10]} 6. Be3 {[%emt 0:05:32]} Bb7 {[%emt 0:01:14]} 7. f4 {[%emt 0:17:33]} e5 {[%emt 0:06:51]} 8. Nf3 {[%emt 0:02:49]} Qc7 {[%emt 0:07:55]} 9. Bd3 {[%emt 0:01:56]} a6 {[%emt 0:02:03]} 10. O-O {[%emt 0:01:14]} Be7 {[%emt 0:07:38]} 11. Qe1 {[%emt 0:06:07]} O-O {[%emt 0:10:44]} 12. g4 $15 {[%emt 0:16:25]} c5 {[%emt 0:21:16]} 13. d5 {[%emt 0:04:51]} c4 {[%emt 0:05:33]} 14. Be2 {[%emt 0:03:19]} Nc5 {[%emt 0:00:55]} 15. Nd2 {[%emt 0:01:54]} exf4 {[%emt 0:01:14]} 16. Bxf4 {[%emt 0:04:10]} Rae8 {[%emt 0:00:44]} 17. Qg3 {[%emt 0:01:36]} Nfd7 {[%emt 0:03:24]} 18. Kh2 {[%emt 0:02:55]} Ne5 {[%emt 0:05:21]} 19. Rae1 {[%emt 0:04:32]} Ng6 {[%emt 0:00:28]} 20. g5 {[%emt 0:02:34]} Nxf4 {[%emt 0:06:53]} 21. Rxf4 {[%emt 0:00:22]} Bc8 {[%emt 0:01:10]} 22. Ref1 {[%emt 0:01:00]} Bd8 {[%emt 0:01:52]} 23. h4 {[%emt 0:00:50]} Qe7 {[%emt 0:00:57]} 24. b4 {[%emt 0:03:22]} cxb3 {[%emt 0:02:46]} 25. cxb3 {[%emt 0:00:01]} Nd7 {[%emt 0:00:13]} 26. Bg4 {[%emt 0:03:06]} Bb6 {[%emt 0:00:58]} 27. b4 {[%emt 0:06:53]} Bd4 {[%emt 0:01:13]} 28. Ne2 {[%emt 0:02:19]} Be5 {[%emt 0:00:11]} 29. Kh1 {[%emt 0:00:11]} Nb6 {[%emt 0:00:30]} 30. Qg1 {[%emt 0:01:34]} Bxf4 {[%emt 0:00:48]} 31. Nxf4 {[%emt 0:00:40]} Bxg4 {[%emt 0:00:20]} 32. Qxb6 {[%emt 0:00:22]} Rc8 {[%emt 0:01:01]} 33. Qg1 {[%emt 0:00:10]} Rc2 {[%emt 0:00:55]} 34. Qxg4 {[%emt 0:02:02]} Rxd2 {[%emt 0:00:08]} 35. Nh5 {[%emt 0:00:22]} Qe5 {[%emt 0:01:09]} 36. Ng3 {[%emt 0:02:06]} Qb2 {[%emt 0:00:47]} 37. Nf5 {[%emt 0:00:27]} Qe5 {[%emt 0:00:37]} 38. Ng3 {[%emt 0:00:39]} g6 {[%emt 0:02:34]} 39. h5 {[%emt 0:00:01]} gxh5 {[%emt 0:00:46]} 40. Qh4 {[%emt 0:00:01]} Rc8 {[%emt 0:02:57]} 41. Nxh5 {[%emt 0:05:13]} Qc3 {[%emt 0:21:04]} 42. Nf6+ {[%emt 0:09:46]} Kf8 {[%emt 0:00:09]} 43. Qg4 {[%emt 0:01:29]} Qc4 {[%emt 0:03:44]} 44. Qf5 {[%emt 0:08:01]} Rc7 {[%emt 0:00:46]} 45. Nxh7+ {[%emt 0:01:13]} Ke8 {[%emt 0:00:26]} 46. g6 {[%emt 0:01:13]} Kd8 {[%emt 0:05:26]} 47. g7 {[%emt 0:00:33]} 0-1

[Event "8th Amsterdam Summer Open-A 2018"]
[Site "Amsterdam"]
[Date "2018.07.11"]
[Round "5"]
[White "Floor, Dirk"]
[Black "Kollen, Zyon"]
[Result "0-1"]
[ECO "E12"]
[WhiteElo "2196"]
[BlackElo "2313"]
[Annotator "NA"]
[PlyCount "80"]
[EventDate "2018.07.07"]
[EventType "swiss"]
[EventCountry "NED"]
[SourceTitle "playchess.com"]
[Source "ChessBase"]
[SourceQuality "1"]
[TimeControl "40/5400+30:1800+30"]

1. Nf3 {[%emt 0:00:00]} e6 {[%emt 0:00:00]} 2. d4 {[%emt 0:00:45]} Nf6 {[%emt 0:00:00]} 3. c4 {[%emt 0:00:46]} b6 {[%emt 0:00:00]} 4. a3 {[%emt 0:00:59]} Bb7 {[%emt 0:01:28]} 5. Nc3 {[%emt 0:00:14]} d5 {[%emt 0:00:57]} 6. Bg5 {[%emt 0:00:39]} Be7 {[%emt 0:00:57]} 7. e3 {[%emt 0:03:08]} h6 {[%emt 0:01:41] E12: Queen's Indian: Unusual White 4th moves, 4 a3, 4 Nc3 Bb7 5 a3 and 4 Nc3 Bb7} (7... O-O 8. Qc2 c5 9. dxc5 bxc5 10. Rd1 Nbd7 11. Be2 h6 12. Bh4 Qb6 13. O-O Rfe8 14. Rd2 Rad8 15. Rfd1 a6 16. h3 {1-0 (56) Riazantsev,A (2650)-Anton Guijarro,D (2666) Riadh 2017}) 8. Bxf6 {[%emt 0:01:11]} Bxf6 {[%emt 0:00:09]} 9. cxd5 {[%emt 0:00:22] LiveBook: 8 Games} exd5 {[%emt 0:00:44]} 10. Bb5+ $146 {[%emt 0:01:03]} ({Predecessor:} 10. b4 O-O 11. Qb3 a5 12. b5 Qd6 13. Bd3 Nd7 14. O-O Rfe8 15. Rfe1 Re7 16. Rac1 {1-0 (42) Campos Moreno,J (2413)-Vidal Zamora,A (2365) Castell de Sant Ferran 2017}) 10... c6 {[%emt 0:01:20]} 11. Bd3 {[%emt 0:00:35]} Nd7 {[%emt 0:02:04]} 12. b4 {[%emt 0:04:29]} a5 {[%emt 0:13:56]} 13. bxa5 {[%emt 0:00:27]} Rxa5 {[%emt 0:00:09]} 14. a4 {[%emt 0:00:12]} O-O {[%emt 0:03:35]} (14... Nc5 $5) 15. O-O {[%emt 0:00:21]} Ba6 {[%emt 0:08:39]} 16. Bxa6 {[%emt 0:04:00]} Rxa6 {[%emt 0:00:03]} 17. Qd3 {[%emt 0:00:33]} Qa8 {[%emt 0:01:42]} 18. Rab1 {[%emt 0:01:55]} Be7 {[%emt 0:08:42]} 19. h3 {[%emt 0:03:22]} Bd6 {[%emt 0:04:22]} 20. Rfe1 {[%emt 0:04:05]} Nf6 {[%emt 0:02:37]} 21. e4 {[%emt 0:08:16]} dxe4 {[%emt 0:02:16]} 22. Nxe4 {[%emt 0:00:38]} Nxe4 {[%emt 0:00:30]} 23. Rxe4 {[%emt 0:16:43]} Rb8 $15 {[%emt 0:05:32]} 24. Ne5 {[%emt 0:11:45]} Bxe5 {[%emt 0:03:44]} 25. dxe5 {[%emt 0:00:40]} Rxa4 {[%emt 0:02:21]} 26. e6 {[%emt 0:01:27]} Rxe4 {[%emt 0:04:11]} 27. exf7+ {[%emt 0:00:27]} Kxf7 {[%emt 0:00:12]} 28. Qxe4 {[%emt 0:00:15]} Kg8 {[%emt 0:01:38]} 29. Qe6+ {[%emt 0:05:06]} Kh8 {[%emt 0:01:07]} 30. Re1 {[%emt 0:01:44]} Qa5 {[%emt 0:06:24]} 31. g4 {[%emt 0:03:54]} Qd5 {[%emt 0:04:51]} 32. Qg6 {[%emt 0:00:23]} Rf8 {[%emt 0:02:32]} 33. Re8 {[%emt 0:11:55]} Rxe8 {[%emt 0:03:43]} 34. Qxe8+ {[%emt 0:00:03]} Kh7 {[%emt 0:00:06]} 35. Qf8 {[%emt 0:03:26]} c5 {[%emt 0:02:25]} 36. f4 {[%emt 0:03:23]} c4 {[%emt 0:03:31]} 37. f5 {[%emt 0:03:32]} Qc6 {[%emt 0:02:14]} 38. Kf2 {[%emt 0:03:06]} c3 {[%emt 0:00:57]} 39. Qa3 {[%emt 0:01:18]} c2 {[%emt 0:02:05]} 40. Qc1 {[%emt 0:00:10]} b5 {[%emt 0:00:38]} 0-1

[Event "8th Amsterdam Summer Open-A 2018"]
[Site "Amsterdam"]
[Date "2018.07.11"]
[Round "5"]
[White "Elgersma, Onno"]
[Black "Spiler, Angelo"]
[Result "1-0"]
[ECO "B38"]
[WhiteElo "2150"]
[BlackElo "2049"]
[Annotator "NA"]
[PlyCount "99"]
[EventDate "2018.07.07"]
[EventType "swiss"]
[EventCountry "NED"]
[SourceTitle "playchess.com"]
[Source "ChessBase"]
[SourceQuality "1"]
[TimeControl "40/5400+30:1800+30"]

1. e4 {[%emt 0:02:43]} c5 {[%emt 0:00:00]} 2. Nf3 {[%emt 0:00:31]} Nc6 {[%emt 0:00:00]} 3. d4 {[%emt 0:00:42]} cxd4 {[%emt 0:00:00]} 4. Nxd4 {[%emt 0:00:04]} g6 {[%emt 0:00:18]} 5. c4 {[%emt 0:00:37]} Bg7 {[%emt 0:00:07]} 6. Be3 {[%emt 0:00:07]} Nf6 {[%emt 0:07:54]} 7. Nc3 {[%emt 0:00:14]} d6 {[%emt 0:00:33]} 8. Be2 {[%emt 0:01:22]} O-O {[%emt 0:02:55]} 9. O-O {[%emt 0:02:09]} Bd7 {[%emt 0:00:21]} 10. Qd2 {[%emt 0:02:36]} Ng4 {[%emt 0:05:42] LiveBook: 85 Games} 11. Bxg4 {[%emt 0:01:30]} Bxg4 {[%emt 0:00:51]} 12. f3 {[%emt 0:04:15]} Bd7 {[%emt 0:05:44]} 13. b3 {[%emt 0:04:56] B38: Sicilian: Maroczy Bind with 5...Bg7 and 7...0-0} (13. Rfd1 a6 14. Nd5 Rc8 15. Rac1 Nxd4 16. Bxd4 Bxd4+ 17. Qxd4 Be6 18. Re1 Re8 19. Nf4 Bd7 20. e5 dxe5 21. Rxe5 {½-½ (35) Mareco,S (2625)-Pascua,H (2427) Dubai 2016}) 13... Qa5 {[%emt 0:06:50]} 14. Rfd1 $146 {[%emt 0:04:59]} ({Predecessor:} 14. Rad1 Rfc8 15. a4 Rab8 16. Nd5 Qxd2 17. Rxd2 Kf8 18. Nb5 b6 19. Nd4 Nxd4 20. Bxd4 Bxd4+ 21. Rxd4 {½-½ (71) Stella,A (2334)-Milenkovic,M (2406) Livigno 2010}) 14... Rfd8 {[%emt 0:01:50]} 15. Rac1 {[%emt 0:02:29]} Nxd4 {[%emt 0:07:17]} 16. Bxd4 {[%emt 0:00:08]} Bxd4+ {[%emt 0:00:19]} 17. Qxd4 {[%emt 0:00:06]} Bc6 {[%emt 0:09:40]} 18. Rb1 {[%emt 0:05:33]} Qc5 {[%emt 0:04:57]} 19. Kh1 {[%emt 0:15:49]} Qxd4 {[%emt 0:00:34]} 20. Rxd4 {[%emt 0:00:02]} Kf8 {[%emt 0:08:28]} 21. Kg1 $11 {[%emt 0:03:17]} a6 {[%emt 0:04:17]} 22. a4 {[%emt 0:01:31]} Rdb8 {[%emt 0:05:17]} 23. b4 {[%emt 0:02:58]} b6 {[%emt 0:01:27]} 24. Kf2 {[%emt 0:06:45]} Rc8 {[%emt 0:01:19]} 25. Ke3 {[%emt 0:11:52]} Ra7 {[%emt 0:05:41]} 26. a5 {[%emt 0:14:34]} bxa5 {[%emt 0:02:21]} 27. bxa5 {[%emt 0:00:02]} Rb7 {[%emt 0:01:12]} 28. Rxb7 {[%emt 0:03:27]} Bxb7 {[%emt 0:00:01]} 29. Na4 {[%emt 0:00:40]} Rc6 {[%emt 0:06:08]} 30. Nb6 {[%emt 0:04:39]} Ke8 {[%emt 0:00:23]} 31. Rd2 {[%emt 0:00:32]} Rc5 {[%emt 0:03:15]} 32. Ra2 {[%emt 0:00:05]} e6 {[%emt 0:03:02]} 33. Kd4 {[%emt 0:02:38]} f5 {[%emt 0:01:07]} 34. exf5 {[%emt 0:00:53]} gxf5 {[%emt 0:00:17]} 35. f4 {[%emt 0:01:25]} h5 {[%emt 0:02:29]} 36. g3 {[%emt 0:00:10]} Be4 {[%emt 0:01:34]} 37. Kc3 {[%emt 0:00:35]} Rc7 {[%emt 0:02:57]} 38. Kb4 {[%emt 0:01:06]} d5 {[%emt 0:00:26]} 39. cxd5 {[%emt 0:00:28]} exd5 {[%emt 0:00:39]} 40. Rd2 {[%emt 0:00:05]} d4 {[%emt 0:01:09]} 41. Rxd4 {[%emt 0:30:39]} Rc2 {[%emt 0:00:29]} 42. Nc4 {[%emt 0:00:00]} Ke7 {[%emt 0:04:03]} 43. Rd2 {[%emt 0:00:00]} Rxd2 {[%emt 0:03:44]} 44. Nxd2 {[%emt 0:00:00]} Bd3 {[%emt 0:03:04]} 45. Kc5 {[%emt 0:00:00]} Ke6 {[%emt 0:00:53]} 46. Nb3 {[%emt 0:00:00]} Kd7 {[%emt 0:01:07]} 47. Nd4 {[%emt 0:00:00]} Ke8 {[%emt 0:01:09]} 48. Kd6 {[%emt 0:00:00]} Kf7 {[%emt 0:00:46]} 49. Ke5 {[%emt 0:00:00]} Kg6 {[%emt 0:00:35]} 50. Nf3 {[%emt 0:00:00]} 1-0

[Event "8th Amsterdam Summer Open-A 2018"]
[Site "Amsterdam"]
[Date "2018.07.11"]
[Round "5"]
[White "Vroombout, Enrico"]
[Black "Hernandez Iglesias, Francisco"]
[Result "1/2-1/2"]
[ECO "D43"]
[WhiteElo "2132"]
[BlackElo "2047"]
[Annotator "NA"]
[PlyCount "130"]
[EventDate "2018.07.07"]
[EventType "swiss"]
[EventCountry "NED"]
[SourceTitle "playchess.com"]
[Source "ChessBase"]
[SourceQuality "1"]
[TimeControl "40/5400+30:1800+30"]

1. d4 {[%emt 0:00:00]} d5 {[%emt 0:00:00]} 2. c4 {[%emt 0:00:00]} c6 {[%emt 0:00:00]} 3. Nf3 {[%emt 0:00:00]} Nf6 {[%emt 0:00:00]} 4. Nc3 {[%emt 0:00:02]} e6 {[%emt 0:00:00]} 5. Bg5 {[%emt 0:00:14]} h6 {[%emt 0:00:00]} 6. Bxf6 {[%emt 0:00:48]} Qxf6 {[%emt 0:00:00]} 7. e3 {[%emt 0:00:15]} g6 {[%emt 0:00:06]} 8. Be2 {[%emt 0:01:53] D43: Semi-Slav: 5 Bg5 h6} Bg7 {[%emt 0:00:18]} 9. cxd5 {[%emt 0:02:01]} exd5 {[%emt 0:00:17]} 10. O-O {[%emt 0:03:04]} O-O {[%emt 0:02:12]} 11. b4 {[%emt 0:01:03]} Be6 {[%emt 0:03:00]} 12. Rc1 $146 {[%emt 0:10:02]} ({Predecessor:} 12. Qb3 Qd8 13. Rfd1 Nd7 14. Rac1 b5 15. a4 a6 {½-½ (45) Fridman,D (2627)-Giri,A (2752) Rosmalen 2014}) 12... a6 {[%emt 0:05:20]} 13. Na4 {[%emt 0:02:47]} Qe7 {[%emt 0:03:53]} 14. Nc5 {[%emt 0:17:04]} Bc8 {[%emt 0:00:56]} 15. Qd2 {[%emt 0:04:06]} Nd7 {[%emt 0:05:03]} 16. a4 {[%emt 0:02:34]} Re8 {[%emt 0:08:05]} 17. b5 {[%emt 0:02:58]} Nxc5 {[%emt 0:08:35]} 18. Rxc5 {[%emt 0:00:13]} cxb5 {[%emt 0:02:20]} 19. axb5 {[%emt 0:01:07]} b6 {[%emt 0:00:30]} 20. Rc6 {[%emt 0:17:05]} Bb7 {[%emt 0:03:08]} 21. Rxb6 {[%emt 0:00:07]} Qc7 {[%emt 0:00:07]} 22. Rxb7 {[%emt 0:00:07]} Qxb7 {[%emt 0:00:05]} 23. bxa6 {[%emt 0:00:04]} Qd7 {[%emt 0:02:09]} 24. Rb1 {[%emt 0:02:38]} Reb8 {[%emt 0:01:01]} 25. Rxb8+ {[%emt 0:00:53]} Rxb8 {[%emt 0:00:03]} 26. Qa2 $16 {[%emt 0:00:38]} Bf6 {[%emt 0:04:52]} 27. g3 {[%emt 0:01:46]} Kg7 {[%emt 0:00:49]} 28. Kg2 {[%emt 0:00:05]} g5 {[%emt 0:04:00]} 29. Ne1 {[%emt 0:03:57]} g4 {[%emt 0:07:16]} 30. Nd3 {[%emt 0:09:25]} Qf5 {[%emt 0:02:34]} 31. a7 {[%emt 0:01:38]} Ra8 {[%emt 0:01:12]} 32. Nf4 {[%emt 0:04:23]} Bd8 {[%emt 0:10:43]} 33. Qxd5 {[%emt 0:09:14]} Qxd5+ {[%emt 0:01:27]} 34. Nxd5 {[%emt 0:00:03]} h5 {[%emt 0:02:41]} 35. Nf4 {[%emt 0:00:20]} Kh6 {[%emt 0:00:12]} 36. h3 {[%emt 0:01:21]} gxh3+ {[%emt 0:02:54]} 37. Kxh3 {[%emt 0:00:08]} h4 {[%emt 0:01:09]} 38. gxh4 {[%emt 0:00:55]} Rxa7 {[%emt 0:00:06]} 39. Bg4 {[%emt 0:03:16]} Ra1 {[%emt 0:03:11]} 40. Bf3 {[%emt 0:00:39]} Ra2 {[%emt 0:04:42]} 41. Ne2 {[%emt 0:01:28]} Bc7 {[%emt 0:02:19]} 42. Kg2 {[%emt 0:01:30]} Bd8 {[%emt 0:01:09]} 43. h5 {[%emt 0:01:45]} Bc7 {[%emt 0:03:27]} 44. Ng3 {[%emt 0:03:15]} Ra5 {[%emt 0:03:08]} 45. d5 {[%emt 0:01:36]} Ra6 {[%emt 0:01:52]} 46. Bg4 {[%emt 0:04:40]} Kg5 {[%emt 0:06:08]} 47. Be2 {[%emt 0:00:34]} Ra4 {[%emt 0:05:53]} 48. f4+ {[%emt 0:01:03]} Kf6 {[%emt 0:00:24]} 49. Kf3 {[%emt 0:06:52]} Ra3 {[%emt 0:00:45]} 50. Ne4+ {[%emt 0:00:36]} Kg7 {[%emt 0:01:57]} 51. Nd2 {[%emt 0:00:58]} f5 {[%emt 0:03:35]} 52. Nc4 {[%emt 0:00:03]} Rc3 {[%emt 0:00:21]} 53. Kf2 {[%emt 0:04:07]} Rc1 {[%emt 0:03:23]} 54. d6 {[%emt 0:04:42]} Rxc4 {[%emt 0:01:00]} 55. Bxc4 {[%emt 0:00:03]} Bxd6 {[%emt 0:00:09]} 56. Be6 {[%emt 0:00:27]} Kf6 {[%emt 0:00:29]} 57. h6 {[%emt 0:00:52]} Kg6 {[%emt 0:00:31]} 58. Bxf5+ {[%emt 0:01:24]} Kxh6 {[%emt 0:00:06]} 59. Kf3 {[%emt 0:01:21]} Kg7 {[%emt 0:00:06]} 60. Ke4 {[%emt 0:00:30]} Kf6 {[%emt 0:00:22]} 61. Bc8 {[%emt 0:00:12]} Bc5 {[%emt 0:00:30]} 62. Kd3 {[%emt 0:00:13]} Ba7 {[%emt 0:00:13]} 63. e4 {[%emt 0:00:04]} Bb8 {[%emt 0:00:04]} 64. e5+ {[%emt 0:00:02]} Bxe5 {[%emt 0:00:06]} 65. fxe5+ {[%emt 0:00:02]} Kxe5 {[%emt 0:00:10] Ke4+ [%emt 00:00:07]} 1/2-1/2